fUSD/lending_fUSD_20241009
["ID","MTS","AMOUNT","RATE_DAILY","PERIOD"]
[340077573,1728472267312,-500.0,0.00043561,120]
[340077574,1728472267321,-500.0,0.00043561,120]
[340077575,1728472267330,-500.0,0.00043561,120]
[340077576,1728472267340,-500.0,0.00043561,120]
[340077577,1728472267349,-500.0,0.00043561,120]
[340077578,1728472267359,-500.0,0.00043561,120]
[340077579,1728472267369,-500.0,0.00043561,120]
[340077580,1728472267379,-500.0,0.00043561,120]
[340077581,1728472267388,-545.45,0.00043561,120]
[340077582,1728472267398,-652.52,0.00043561,120]
[340077583,1728472267409,-500.0,0.00043561,120]
[340077584,1728472267418,-500.0,0.00043561,120]
[340077585,1728472267428,-500.0,0.00043561,120]
[340077586,1728472267437,-1882.71,0.00043561,120]
[340077587,1728472267447,-500.0,0.00043561,120]
[340077588,1728472267457,-770.51,0.00043561,5]
[340077589,1728472267466,-500.0,0.00043561,120]
[340077590,1728472267476,-500.0,0.00043561,120]
[340077591,1728472267485,-500.0,0.00043561,120]
[340077592,1728472267495,-500.0,0.00043561,120]
[340077593,1728472267504,-800.11,0.00043561,120]
[340077594,1728472267514,-500.0,0.00043561,120]
[340077595,1728472267523,-500.0,0.00043561,120]
[340077596,1728472267532,-500.0,0.00043561,120]
[340077597,1728472267542,-671.56,0.00043561,120]
[340077598,1728472267552,-1758.04,0.00043561,120]
[340077599,1728472267561,-500.0,0.00043561,120]
[340077600,1728472267572,-500.0,0.00043561,120]
[340077601,1728472267581,-3189.97,0.00043561,120]
[340077602,1728472267591,-1202.58,0.00043561,120]
[340077603,1728472267600,-500.0,0.00043561,120]
[340077604,1728472267610,-621.75,0.00043561,120]
[340077605,1728472267619,-1566.38,0.00043561,120]
[340077606,1728472267628,-500.0,0.00043561,120]
[340077607,1728472267638,-500.0,0.00043561,2]
[340077608,1728472267647,-500.0,0.00043561,120]
[340077609,1728472267657,-500.0,0.00043561,120]
[340077610,1728472267666,-500.0,0.00043561,120]
[340077611,1728472267675,-521.97,0.00043561,120]
[340077612,1728472267685,-250.56589758,0.00043561,120]
[340077613,1728472267694,-1503.23,0.00043561,120]
[340077614,1728472267703,-500.0,0.00043561,120]
[340077615,1728472267713,-8727.24020102,0.00043561,30]
[340077616,1728472267726,-573.27155235,0.00043561,30]
[340077617,1728472267737,-6538.1766492,0.00043561,30]
[340077618,1728472267748,-7764.03034652,0.00043561,30]
[340077619,1728472267759,-300.0,0.00043561,30]
[340077620,1728472267770,-3151.08700003,0.00043561,30]
[340077621,1728472267782,-313.06330969,0.00043561,30]
[340077622,1728472718354,-300.0,0.00019725,2]
[340077623,1728473108180,4700.0,0.00011,2]
[340077624,1728473108221,429449.66338863,0.00011,2]
[340077625,1728473108255,3351.0,0.00011,2]
[340077626,1728473108288,100000.0,0.00011,2]
[340077627,1728473108319,10384628.0,0.00011,2]
[340077628,1728473151187,-22222.0,0.00011,2]
[340077629,1728473189980,2043.47368449,0.00010997,2]
[340077630,1728473191895,178.22635277,0.00010999,2]
[340077631,1728473192654,500.0,0.00010999,2]
[340077632,1728473192706,500.0,0.00010999,2]
[340077633,1728473192759,500.0,0.00010999,2]
[340077634,1728473192816,500.0,0.00010999,2]
[340077635,1728473192872,240.22812711,0.00010999,2]
[340077636,1728473205769,-8750.0,0.00011,2]
[340077637,1728473210600,248.91423634,0.00010999,2]
[340077638,1728473222926,150.0,0.00010999,2]
[340077639,1728473238799,205.0,9.8e-05,2]
[340077641,1728473277955,453.5730969,0.0001,2]
[340077643,1728473314405,1504.70340239,0.00010998,2]
[340077646,1728473367741,-2000.0,0.00010998,2]
[340077647,1728473369349,-529.37813332,0.00010998,2]
[340077648,1728473369373,-1470.62186668,0.00011,2]
[340077649,1728473373948,-1000.0,0.00011,2]
[340077655,1728473377979,-500.0,0.00011,2]
[340077661,1728473431382,-74696.78239705,0.00011,2]
[340077663,1728473431394,-551.96397731,0.00011,2]
[340077668,1728473431510,-2132.33218236,0.00011,2]
[340077669,1728473431522,-800.0,0.00011,2]
[340077670,1728473431533,-633.33,0.00011,2]
[340077671,1728473431552,-3897.67600053,0.00011,2]
[340077672,1728473431587,-4490.59023949,0.00011,2]
[340077673,1728473431599,-2705.49053353,0.00011,2]
[340077674,1728473431626,-3321.65818036,0.00011,2]
[340077675,1728473431638,-748.87385005,0.00011,2]
[340077681,1728473437613,-1721847.69108714,0.00011,2]
[340077682,1728473437651,-2510.72,0.00011,2]
[340077683,1728473437662,-5467.1526366,0.00011,2]
[340077684,1728473437685,-2533.46955,0.00011,2]
[340077685,1728473437803,-132489.684172,0.00011,2]
[340077686,1728473437834,-582.24356216,0.00011,2]
[340077687,1728473437845,-663.2,0.00011,2]
[340077710,1728473439575,-143064.35827717,0.00011,2]
[340077711,1728473439818,-1493.397668,0.00011,2]
[340077712,1728473439869,-27.87851729,0.00011,2]
[340077713,1728473439881,-628.21759,0.00011,2]
[340077714,1728473439894,-2546.88,0.00011,2]
[340077715,1728473439923,-26788.31964853,0.00011,2]
[340077716,1728473439937,-10686.92017538,0.00011,2]
[340077717,1728473439961,-617.83349088,0.00011,2]
[340077721,1728473442549,-363.75556695,0.00011,2]
[340077722,1728473442584,-589.97098,0.00011,2]
[340077723,1728473442821,-1260.0,0.00011,2]
[340077724,1728473442862,-1388.82081271,0.00011,2]
[340077726,1728473445549,-5704.22425923,0.00011,2]
[340077727,1728473445745,-63000.0,0.00011,2]
[340077758,1728473463085,700.0,0.000109,3]
[340077759,1728473524200,-300.0,0.00010999,2]
[340077760,1728473524227,-1700.0,0.00011,2]
[340077761,1728473526031,-2000.0,0.00011,2]
[340077762,1728473527012,-2000.0,0.00011,2]
[340077763,1728473527973,-2000.0,0.00011,2]
[340077764,1728473528988,-2000.0,0.00011,2]
[340077765,1728473533481,-800.0,0.00011,2]
[340077766,1728473828951,-1580.364481,0.000109,2]
[340077767,1728473828972,-419.635519,0.00010959,2]
[340077768,1728473830127,-39.024481,0.00010959,2]
[340077769,1728473830148,-382.22,0.00010959,2]
[340077770,1728473830169,-318.52,0.00010959,2]
[340077771,1728473830190,-265.43,0.00010959,2]
[340077772,1728473830210,-221.19,0.00010959,2]
[340077773,1728473830230,-184.33,0.00010959,2]
[340077774,1728473830250,-153.61,0.00010959,2]
[340077775,1728473830270,-435.675519,0.00010959,2]
[340077776,1728473831734,-693.504,0.00010959,2]
[340077777,1728473831755,-1000.0,0.00010999,2]
[340077778,1728473831776,-150.0,0.00010999,2]
[340077779,1728473831797,-156.496,0.00010999,2]
[340077780,1728473833320,-343.504,0.00010999,2]
[340077781,1728473833342,-361.66081735,0.00010999,2]
[340077782,1728473833368,-1294.83518265,0.00011,2]
[340077783,1728473834699,-2000.0,0.00011,2]
[340077784,1728473840765,-300.0,0.00010973,2]
[340077785,1728473948504,-1000.0,0.00010873,2]
[340077786,1728473948525,-1000.0,0.000109,2]
[340077787,1728473952498,-849.59232896,0.000109,2]
[340077788,1728473952518,-50.40767104,0.000109,2]
[340077789,1728474441124,700.0,0.000109,3]
[340077801,1728474631605,-1252.47841202,0.000108,2]
[340077802,1728474631614,-627.37387348,0.000109,2]
[340077803,1728474631626,-622.0,0.000109,2]
[340077804,1728474631637,-415.25922262,0.000109,2]
[340077805,1728474631646,-292.88077738,0.000109,2]
[340077806,1728474631657,-476.03849466,0.000109,2]
[340077807,1728474631672,-267.85449162,0.000109,2]
[340077808,1728474631681,-247.92405771,0.000109,2]
[340077809,1728474631690,-221.21212706,0.000109,2]
[340077810,1728474631700,-157.18,0.00010959,2]
[340077811,1728474631709,-332.37,0.00010959,2]
[340077812,1728474631718,-500.0,0.00010973,2]
[340077813,1728474631728,-158.37710343,0.00010973,2]
[340077814,1728474631737,-1271.04934346,0.00011,2]
[340077815,1728474631749,-1602.76914189,0.00011,2]
[340077816,1728474631760,-81875.02165,0.00011,2]
[340077817,1728474631782,-439.35,0.00011,2]
[340077818,1728474631794,-5644.64864698,0.00011,2]
[340077819,1728474631804,-268.07010932,0.00011,2]
[340077820,1728474631816,-1378.29577402,0.00011,2]
[340077821,1728474631832,-427.51880542,0.00011,2]
[340077822,1728474631843,-1382.78807392,0.00011,2]
[340077823,1728474631858,-1075.9549519,0.00011,2]
[340077824,1728474631871,-1106.02,0.00011,2]
[340077825,1728474631882,-992.32592759,0.00011,2]
[340077826,1728474631892,-1584.40976051,0.00011,2]
[340077827,1728474631904,-700.0,0.00011,2]
[340077828,1728474631916,-939.82724979,0.00011,2]
[340077829,1728474631927,-18080.63554323,0.00011,2]
[340077834,1728474631972,-487.40822284,0.00011,2]
[340077838,1728474631999,-1719.12877853,0.00011,2]
[340077840,1728474632011,-5858.28634486,0.00011,2]
[340077842,1728474632023,-6184.95541676,0.00011,2]
[340077866,1728474637689,-500.0,0.00011,2]
[340077867,1728474637701,-69669.92526829,0.00011,2]
[340077868,1728474637742,-580.70497735,0.00011,2]
[340077869,1728474637754,-88161.89124824,0.00011,2]
[340077870,1728474637765,-3500.0,0.00011,2]
[340077871,1728474637796,-3478.29155704,0.00011,2]
[340077872,1728474637852,-6306.46081303,0.00011,2]
[340077873,1728474637864,-297.97689013,0.00011,2]
[340077874,1728474637876,-4451.01784202,0.00011,2]
[340077875,1728474637905,-1056.81499998,0.00011,2]
[340077876,1728474638012,-484501.85181841,0.00011,2]
[340077877,1728474638022,-250.0,0.00011,2]
[340077878,1728474638032,-1000.0,0.00012342,2]
[340077879,1728474638042,-177.48939322,0.00014346,2]
[340077880,1728474638052,-1664.63309604,0.00015522,2]
[340077881,1728474638062,-1165.19,0.00016454,2]
[340077882,1728474638072,-247.9240577,0.00016454,2]
[340077883,1728474638084,-3293.26,0.0001726,2]
[340077884,1728474638095,-1229.0,0.000183,2]
[340077885,1728474638104,-594.15,0.000183,2]
[340077886,1728474638114,-499.99,0.000183,2]
[340077887,1728474638123,-1664.63309604,0.00020144,2]
[340077888,1728474638132,-678.88,0.00021317,2]
[340077889,1728474638142,-375.0,0.00021917,2]
[340077890,1728474638152,-247.9240577,0.00022009,2]
[340077891,1728474638162,-678.88,0.00023981,2]
[340077892,1728474638172,-1036.77376364,0.00024578,2]
[340077893,1728474638182,-750.0,0.00024657,2]
[340077894,1728474638192,-1664.63309604,0.00024766,2]
[340077895,1728474638201,-678.88,0.00026646,2]
[340077896,1728474638211,-1125.0,0.00027397,2]
[340077897,1728474638220,-247.9240577,0.00027563,2]
[340077898,1728474638230,-276.96,0.00027802,2]
[340077899,1728474638240,-499.9,0.00028922,2]
[340077900,1728474638250,-250.0,0.00029035,2]
[340077901,1728474638264,-227.78,0.00029274,120]
[340077902,1728474638274,-678.88,0.0002931,2]
[340077903,1728474638284,-250.0,0.00029373,2]
[340077904,1728474638293,-1664.63309604,0.00029388,15]
[340077905,1728474638303,-950.71,0.00029392,60]
[340077906,1728474638313,-186.95,0.00029402,120]
[340077907,1728474638322,-659.53,0.00029412,2]
[340077908,1728474638335,-230.33,0.0002944,2]
[340077909,1728474638345,-321.12,0.000295,2]
[340077910,1728474638355,-4300.0,0.00029503,2]
[340077911,1728474638365,-2059.82,0.0002963,2]
[340077912,1728474638375,-2606.45,0.00029658,2]
[340077913,1728474638384,-23900.0,0.00029713,2]
[340077914,1728474638393,-250.0,0.00029719,2]
[340077915,1728474638403,-150.58,0.00029785,2]
[340077916,1728474638413,-276.96,0.00030066,2]
[340077917,1728474638423,-1500.0,0.00030136,2]
[340077918,1728474638434,-749.76016248,0.0003137,3]
[340077919,1728474638445,-678.88,0.00031975,2]
[340077920,1728474638455,-7488.80903591,0.0003232,6]
[340077921,1728474638465,-276.96,0.00032329,2]
[340077922,1728474638475,-1269.65597609,0.0003237,3]
[340077923,1728474638485,-1664.4961097,0.00032876,2]
[340077924,1728474638495,-321.12,0.00033187,2]
[340077925,1728474638505,-1664.63309604,0.0003401,15]
[340077926,1728474638514,-276.96,0.00034593,2]
[340077927,1728474638524,-276.96,0.00036857,2]
[340077928,1728474638533,-321.12,0.00036874,2]
[340077929,1728474638543,-1500.0,0.000379,13]
[340077930,1728474638552,-375.48786456,0.000382,120]
[340077931,1728474638562,-14977.6180718,0.00038236,7]
[340077932,1728474638572,-162.00305051,0.00038256,2]
[340077933,1728474638583,-1036.77376364,0.00038256,13]
[340077934,1728474638592,-82376.899395,0.00038336,7]
[340077935,1728474638601,-241.0,0.00038345,5]
[340077936,1728474638611,-741.30254506,0.00038346,2]
[340077937,1728474638620,-112332.135539,0.00038346,7]
[340077938,1728474638630,-150.0,0.00038355,30]
[340077939,1728474638640,-500.0,0.00038356,30]
[340077940,1728474638649,-500.0,0.00038356,30]
[340077941,1728474638659,-504.25822222,0.00038356,30]
[340077942,1728474638669,-500.0,0.00038356,5]
[340077943,1728474638678,-500.0,0.00038356,2]
[340077944,1728474638688,-500.0,0.00038356,30]
[340077945,1728474638697,-674.19,0.00038356,5]
[340077946,1728474638707,-500.0,0.00038356,30]
[340077947,1728474638717,-500.0,0.00038356,30]
[340077948,1728474638726,-500.0,0.00038356,30]
[340077949,1728474638736,-295.49752908,0.00038356,30]
[340077950,1728474638745,-500.0,0.00038356,2]
[340077951,1728474638755,-2048.58,0.00038356,30]
[340077952,1728474638765,-500.0,0.00038356,30]
[340077953,1728474638774,-514.74515941,0.00038356,30]
[340077954,1728474638784,-500.0,0.00038356,30]
[340077955,1728474638793,-500.0,0.00038356,30]
[340077956,1728474638803,-500.0,0.00038356,30]
[340077957,1728474638813,-500.0,0.00038356,30]
[340077958,1728474638822,-500.0,0.00038356,30]
[340077959,1728474638833,-500.0,0.00038356,30]
[340077960,1728474638842,-500.0,0.00038356,30]
[340077961,1728474638852,-500.0,0.00038356,30]
[340077962,1728474638861,-500.0,0.00038356,30]
[340077963,1728474638871,-500.0,0.00038356,30]
[340077964,1728474638881,-338.04041459,0.00038356,30]
[340077965,1728474638890,-1194.79,0.00038356,30]
[340077966,1728474638901,-500.0,0.00038356,30]
[340077967,1728474638910,-197.25873657,0.00038356,30]
[340077968,1728474638919,-500.0,0.00038356,30]
[340077969,1728474638929,-500.0,0.00038356,30]
[340077970,1728474638939,-1534.88,0.00038356,30]
[340077971,1728474638948,-500.0,0.00038356,30]
[340077972,1728474638957,-500.0,0.00038356,30]
[340077973,1728474638967,-500.0,0.00038356,30]
[340077974,1728474638976,-181.5267688,0.00038356,30]
[340077975,1728474638986,-500.0,0.00038356,30]
[340077976,1728474638995,-500.0,0.00038356,30]
[340077977,1728474639005,-500.0,0.00038356,30]
[340077978,1728474639015,-500.0,0.00038356,30]
[340077979,1728474639024,-1943.47,0.00038356,30]
[340077980,1728474639033,-1063.79,0.00038356,30]
[340077981,1728474639043,-500.0,0.00038356,30]
[340077982,1728474639052,-700.0,0.00038356,30]
[340077983,1728474639061,-500.0,0.00038356,30]
[340077984,1728474639071,-500.0,0.00038356,30]
[340077985,1728474639082,-500.0,0.00038356,30]
[340077986,1728474639092,-500.0,0.00038356,30]
[340077987,1728474639101,-500.0,0.00038356,30]
[340077988,1728474639110,-500.0,0.00038356,30]
[340077989,1728474639119,-500.0,0.00038356,30]
[340077990,1728474639129,-500.0,0.00038356,30]
[340077991,1728474639138,-500.0,0.00038356,30]
[340077992,1728474639147,-1251.76,0.00038356,30]
[340077993,1728474639159,-500.0,0.00038356,30]
[340077994,1728474639290,-500.0,0.00038356,30]
[340077995,1728474639303,-682.14,0.00038356,30]
[340077996,1728474639313,-1200.4,0.00038356,30]
[340077997,1728474639325,-500.0,0.00038356,30]
[340077998,1728474639333,-500.0,0.00038356,30]
[340077999,1728474639343,-500.0,0.00038356,30]
[340078000,1728474639353,-500.0,0.00038356,30]
[340078001,1728474639362,-500.0,0.00038356,30]
[340078002,1728474639374,-500.0,0.00038356,30]
[340078003,1728474639385,-1240.35,0.00038356,30]
[340078004,1728474639395,-1151.03,0.00038356,30]
[340078005,1728474639406,-540.37700782,0.00038356,30]
[340078006,1728474639418,-500.0,0.00038356,30]
[340078007,1728474639427,-20000.0,0.00038356,2]
[340078008,1728474639437,-500.0,0.00038356,30]
[340078009,1728474639446,-500.0,0.00038356,30]
[340078010,1728474639455,-500.0,0.00038356,30]
[340078011,1728474639465,-500.0,0.00038356,30]
[340078012,1728474639476,-500.0,0.00038356,30]
[340078013,1728474639487,-500.0,0.00038356,30]
[340078014,1728474639497,-201.73617523,0.00038356,30]
[340078015,1728474639506,-500.0,0.00038356,30]
[340078016,1728474639516,-500.0,0.00038356,30]
[340078017,1728474639528,-500.0,0.00038356,30]
[340078018,1728474639538,-500.0,0.00038356,30]
[340078019,1728474639547,-578.02,0.00038356,30]
[340078020,1728474639557,-500.0,0.00038356,30]
[340078021,1728474639566,-701.09,0.00038356,30]
[340078022,1728474639577,-500.0,0.00038356,30]
[340078023,1728474639587,-622.01413144,0.00038356,30]
[340078024,1728474639596,-500.0,0.00038356,30]
[340078025,1728474639606,-500.0,0.00038356,30]
[340078026,1728474639615,-500.0,0.00038356,30]
[340078027,1728474639626,-500.0,0.00038356,30]
[340078028,1728474639637,-500.0,0.00038356,30]
[340078029,1728474639650,-500.0,0.00038356,30]
[340078030,1728474639660,-500.0,0.00038356,30]
[340078031,1728474639670,-500.0,0.00038356,30]
[340078032,1728474639681,-500.0,0.00038356,30]
[340078033,1728474639692,-500.0,0.00038356,30]
[340078034,1728474639702,-500.0,0.00038356,30]
[340078035,1728474639713,-500.0,0.00038356,30]
[340078036,1728474639724,-500.0,0.00038356,30]
[340078037,1728474639733,-500.0,0.00038356,30]
[340078038,1728474639744,-500.0,0.00038356,30]
[340078039,1728474639755,-1129.05,0.00038356,7]
[340078040,1728474639765,-500.0,0.00038356,30]
[340078041,1728474639775,-516.57890871,0.00038356,30]
[340078042,1728474639785,-500.0,0.00038356,30]
[340078043,1728474639794,-500.0,0.00038356,30]
[340078044,1728474639806,-544.2,0.00038356,30]
[340078045,1728474639816,-2326.13,0.00038356,30]
[340078046,1728474639827,-500.0,0.00038356,30]
[340078047,1728474639836,-1235.1,0.00038356,30]
[340078048,1728474639846,-500.0,0.00038356,30]
[340078049,1728474639856,-500.0,0.00038356,30]
[340078050,1728474639867,-500.0,0.00038356,30]
[340078051,1728474639876,-500.0,0.00038356,30]
[340078052,1728474639887,-500.0,0.00038356,30]
[340078053,1728474639897,-585.61823321,0.00038356,30]
[340078054,1728474639909,-472.48390372,0.00038356,30]
[340078055,1728474639919,-776.22,0.00038356,30]
[340078056,1728474639929,-500.0,0.00038356,30]
[340078057,1728474639939,-878.23,0.00038356,30]
[340078058,1728474639949,-517.57868067,0.00038356,30]
[340078059,1728474639960,-333.2,0.00038356,30]
[340078060,1728474639970,-500.0,0.00038356,30]
[340078061,1728474639980,-649.1,0.00038356,30]
[340078062,1728474639992,-500.0,0.00038356,30]
[340078063,1728474640001,-500.0,0.00038356,30]
[340078064,1728474640011,-500.0,0.00038356,30]
[340078065,1728474640022,-354.14187953,0.00038356,30]
[340078066,1728474640032,-500.0,0.00038356,30]
[340078067,1728474640042,-500.0,0.00038356,30]
[340078068,1728474640051,-500.0,0.00038356,30]
[340078069,1728474640060,-4280.23,0.00038356,30]
[340078070,1728474640070,-500.0,0.00038356,30]
[340078071,1728474640080,-500.0,0.00038356,30]
[340078072,1728474640090,-554.85,0.00038356,30]
[340078073,1728474640099,-575.98404243,0.00038356,30]
[340078074,1728474640109,-500.0,0.00038356,30]
[340078075,1728474640118,-1591.91,0.00038356,30]
[340078076,1728474640128,-429.13160527,0.00038356,30]
[340078077,1728474640138,-500.0,0.00038356,30]
[340078078,1728474640148,-548.38,0.00038356,30]
[340078079,1728474640157,-500.0,0.00038356,30]
[340078080,1728474640167,-343.80915088,0.00038356,30]
[340078081,1728474640177,-500.0,0.00038356,30]
[340078082,1728474640186,-500.0,0.00038356,30]
[340078083,1728474640196,-500.0,0.00038356,30]
[340078084,1728474640206,-500.0,0.00038356,30]
[340078085,1728474640215,-1790.13,0.00038356,30]
[340078086,1728474640225,-500.0,0.00038356,30]
[340078087,1728474640235,-681.86,0.00038356,30]
[340078088,1728474640244,-500.0,0.00038356,30]
[340078089,1728474640255,-843.32,0.00038356,30]
[340078090,1728474640267,-500.0,0.00038356,30]
[340078091,1728474640276,-500.0,0.00038356,30]
[340078092,1728474640286,-500.0,0.00038356,30]
[340078093,1728474640296,-500.0,0.00038356,30]
[340078094,1728474640306,-604.97,0.00038356,30]
[340078095,1728474640315,-500.0,0.00038356,30]
[340078096,1728474640325,-500.0,0.00038356,30]
[340078097,1728474640335,-500.0,0.00038356,30]
[340078098,1728474640344,-500.0,0.00038356,30]
[340078099,1728474640353,-1647.37,0.00038356,30]
[340078100,1728474640362,-677.99,0.00038356,30]
[340078101,1728474640371,-500.0,0.00038356,30]
[340078102,1728474640381,-500.0,0.00038356,30]
[340078103,1728474640390,-500.0,0.00038356,30]
[340078104,1728474640399,-500.0,0.00038356,30]
[340078105,1728474640408,-500.0,0.00038356,30]
[340078106,1728474640417,-500.0,0.00038356,30]
[340078107,1728474640427,-500.0,0.00038356,30]
[340078108,1728474640436,-500.0,0.00038356,30]
[340078109,1728474640445,-1538.29,0.00038356,30]
[340078110,1728474640454,-500.0,0.00038356,30]
[340078111,1728474640463,-500.0,0.00038356,30]
[340078112,1728474640471,-500.0,0.00038356,30]
[340078113,1728474640481,-500.0,0.00038356,30]
[340078114,1728474640490,-500.0,0.00038356,30]
[340078115,1728474640499,-501.7308311,0.00038356,30]
[340078116,1728474640508,-2791.23,0.00038356,30]
[340078117,1728474640517,-500.0,0.00038356,30]
[340078118,1728474640526,-514.19,0.00038356,30]
[340078119,1728474640535,-500.0,0.00038356,30]
[340078120,1728474640544,-1386.33,0.00038356,30]
[340078121,1728474640553,-500.0,0.00038356,30]
[340078122,1728474640562,-500.0,0.00038356,30]
[340078123,1728474640571,-700.1,0.00038356,30]
[340078124,1728474640582,-1315.33,0.00038356,30]
[340078125,1728474640599,-500.0,0.00038356,30]
[340078126,1728474640608,-500.0,0.00038356,30]
[340078127,1728474640617,-500.0,0.00038356,30]
[340078128,1728474640626,-587.62,0.00038356,30]
[340078129,1728474640635,-500.0,0.00038356,30]
[340078130,1728474640644,-500.0,0.00038356,30]
[340078131,1728474640653,-500.0,0.00038356,30]
[340078132,1728474640662,-500.0,0.00038356,30]
[340078133,1728474640671,-500.0,0.00038356,30]
[340078134,1728474640680,-500.0,0.00038356,30]
[340078135,1728474640689,-648.89,0.00038356,30]
[340078136,1728474640698,-594.38356257,0.00038356,30]
[340078137,1728474640707,-500.0,0.00038356,30]
[340078138,1728474640716,-500.0,0.00038356,30]
[340078139,1728474640725,-500.0,0.00038356,30]
[340078140,1728474640733,-500.0,0.00038356,30]
[340078141,1728474640743,-500.0,0.00038356,30]
[340078142,1728474640752,-500.0,0.00038356,30]
[340078143,1728474640760,-500.0,0.00038356,30]
[340078144,1728474640770,-500.0,0.00038356,30]
[340078145,1728474640779,-2775.18,0.00038356,30]
[340078146,1728474640788,-500.0,0.00038356,30]
[340078147,1728474640798,-500.0,0.00038356,2]
[340078148,1728474640808,-555.53,0.00038356,30]
[340078149,1728474640818,-500.0,0.00038356,30]
[340078150,1728474640829,-627.06,0.00038356,30]
[340078151,1728474640838,-1709.31,0.00038356,30]
[340078152,1728474640847,-500.0,0.00038356,30]
[340078153,1728474640856,-500.0,0.00038356,30]
[340078154,1728474640865,-500.0,0.00038356,30]
[340078155,1728474640874,-503.16802167,0.00038356,30]
[340078156,1728474640884,-748.87,0.00038356,30]
[340078157,1728474640892,-500.0,0.00038356,30]
[340078158,1728474640901,-500.0,0.00038356,30]
[340078159,1728474640911,-500.0,0.00038356,30]
[340078160,1728474640920,-1645.12,0.00038356,30]
[340078161,1728474640930,-500.0,0.00038356,30]
[340078162,1728474640939,-216.82556724,0.00038356,30]
[340078163,1728474640949,-500.0,0.00038356,30]
[340078164,1728474640958,-500.0,0.00038356,30]
[340078165,1728474640968,-500.0,0.00038356,30]
[340078166,1728474640978,-500.0,0.00038356,30]
[340078167,1728474640987,-500.0,0.00038356,30]
[340078168,1728474640996,-500.0,0.00038356,30]
[340078169,1728474641006,-593.51,0.00038356,30]
[340078170,1728474641015,-500.0,0.00038356,30]
[340078171,1728474641024,-245.67490061,0.00038356,30]
[340078172,1728474641034,-500.0,0.00038356,30]
[340078173,1728474641044,-500.0,0.00038356,30]
[340078174,1728474641053,-500.0,0.00038356,30]
[340078175,1728474641063,-500.0,0.00038356,7]
[340078176,1728474641073,-500.0,0.00038356,30]
[340078177,1728474641083,-1016.84,0.00038356,30]
[340078178,1728474641092,-500.0,0.00038356,30]
[340078179,1728474641102,-500.0,0.00038356,30]
[340078180,1728474641112,-1821.33,0.00038356,30]
[340078181,1728474641121,-2299.69,0.00038356,30]
[340078182,1728474641130,-500.0,0.00038356,30]
[340078183,1728474641139,-551.8,0.00038356,30]
[340078184,1728474641148,-500.0,0.00038356,30]
[340078185,1728474641157,-500.0,0.00038356,30]
[340078186,1728474641166,-500.0,0.00038356,30]
[340078187,1728474641175,-990.39,0.00038356,30]
[340078188,1728474641185,-5329.07,0.00038356,30]
[340078189,1728474641194,-500.0,0.00038356,30]
[340078190,1728474641203,-500.0,0.00038356,30]
[340078191,1728474641212,-743.21,0.00038356,30]
[340078192,1728474641221,-610.6304644,0.00038356,30]
[340078193,1728474641230,-500.0,0.00038356,30]
[340078194,1728474641239,-500.0,0.00038356,30]
[340078195,1728474641249,-580.88,0.00038356,30]